[Event "*** Titled Tuesday Blitz"]
[Site "Chess.com"]
[Date "2018.10.02"]
[Round "6"]
[White "Rodalquilar"]
[Black "ShimanovAlex"]
[Result "0-1"]
[WhiteElo "2530"]
[BlackElo "2728"]
[TimeControl "180+2"]
[EndTime "14:18:06 PDT"]
[Termination "ShimanovAlex won by resignation"]

1. d4 {[%clk 0:03:01.9]} 1... Nf6 {[%clk 0:03:00.2]} 2. Bg5 {[%clk 0:03:03.1]}
2... Ne4 {[%clk 0:03:00.1]} 3. Bf4 {[%clk 0:03:04.6]} 3... Nc6 {[%clk
0:03:00.4]} 4. f3 {[%clk 0:03:01.5]} 4... e5 {[%clk 0:02:59.9]} 5. dxe5 {[%clk
0:02:58.4]} 5... g5 {[%clk 0:03:01.1]} 6. Bc1 {[%clk 0:02:54.7]} 6... Nc5 {[%clk
0:03:00.7]} 7. e4 {[%clk 0:02:48.9]} 7... Nxe5 {[%clk 0:02:57.5]} 8. Nc3 {[%clk
0:02:50.3]} 8... Bg7 {[%clk 0:02:58]} 9. Be3 {[%clk 0:02:51.1]} 9... d6 {[%clk
0:02:57.6]} 10. Qd2 {[%clk 0:02:52.5]} 10... h6 {[%clk 0:02:57.5]} 11. O-O-O
{[%clk 0:02:53.3]} 11... Be6 {[%clk 0:02:55.7]} 12. h4 {[%clk 0:02:41.2]} 12...
gxh4 {[%clk 0:02:51.8]} 13. f4 {[%clk 0:02:39]} 13... Ng4 {[%clk 0:02:48.4]} 14.
Bd4 {[%clk 0:02:40.3]} 14... Bxd4 {[%clk 0:02:34.5]} 15. Qxd4 {[%clk 0:02:42.2]}
15... Qf6 {[%clk 0:02:35.7]} 16. Qxf6 {[%clk 0:02:42.9]} 16... Nxf6 {[%clk
0:02:36.6]} 17. Rxh4 {[%clk 0:02:44.8]} 17... Nfxe4 {[%clk 0:02:35.2]} 18. Nxe4
{[%clk 0:01:53.8]} 18... Nxe4 {[%clk 0:02:37.1]} 19. Bd3 {[%clk 0:01:24.5]}
19... Nf2 {[%clk 0:02:34.3]} 20. Rd2 {[%clk 0:01:19.6]} 20... Nxd3+ {[%clk
0:02:34.3]} 21. Rxd3 {[%clk 0:01:21.5]} 21... O-O-O {[%clk 0:02:32]} 22. Nf3
{[%clk 0:01:22.8]} 22... Rdg8 {[%clk 0:02:32.2]} 23. Rd2 {[%clk 0:01:18.9]}
23... Rg3 {[%clk 0:02:28.3]} 24. Nd4 {[%clk 0:01:19.5]} 24... Bg4 {[%clk
0:02:24.1]} 25. Rh2 {[%clk 0:00:56.5]} 25... Re8 {[%clk 0:02:21.3]} 26. b3
{[%clk 0:00:54.9]} 26... h5 {[%clk 0:02:21.4]} 27. Kb2 {[%clk 0:00:54.7]} 27...
Re4 {[%clk 0:02:21.5]} 28. Nb5 {[%clk 0:00:53.6]} 28... a6 {[%clk 0:02:19.6]}
29. Nc3 {[%clk 0:00:54.2]} 29... Rxf4 {[%clk 0:02:18.7]} 30. Nd5 {[%clk
0:00:54]} 30... Rf1 {[%clk 0:02:17.1]} 31. Ne3 {[%clk 0:00:52]} 31... Rxe3
{[%clk 0:02:17.2]} 0-1

[Event "*** Titled Tuesday Blitz"]
[Site "Chess.com"]
[Date "2018.10.02"]
[Round "6"]
[White "hurricane7791"]
[Black "FMJoseHerrera"]
[Result "1-0"]
[WhiteElo "2693"]
[BlackElo "2514"]
[TimeControl "180+2"]
[EndTime "14:18:33 PDT"]
[Termination "hurricane7791 won by checkmate"]

1. e4 {[%clk 0:03:01.9]} 1... c5 {[%clk 0:03:01]} 2. Nf3 {[%clk 0:03:01.8]} 2...
e6 {[%clk 0:03:01.7]} 3. d4 {[%clk 0:03:03.2]} 3... cxd4 {[%clk 0:03:03.6]} 4.
Nxd4 {[%clk 0:03:05]} 4... a6 {[%clk 0:03:04.6]} 5. Nc3 {[%clk 0:03:04.9]} 5...
Qc7 {[%clk 0:03:03.8]} 6. f4 {[%clk 0:03:04]} 6... b5 {[%clk 0:03:01.6]} 7. a3
{[%clk 0:03:03.9]} 7... Bb7 {[%clk 0:03:01.4]} 8. Bd3 {[%clk 0:03:04.6]} 8... d6
{[%clk 0:03:02.8]} 9. Qe2 {[%clk 0:03:04.8]} 9... Nd7 {[%clk 0:03:04.4]} 10. Bd2
{[%clk 0:03:05.1]} 10... Ngf6 {[%clk 0:03:02.9]} 11. O-O {[%clk 0:03:06.1]}
11... h5 {[%clk 0:03:03.2]} 12. Kh1 {[%clk 0:03:06.7]} 12... h4 {[%clk 0:03:04]}
13. Rae1 {[%clk 0:03:03]} 13... h3 {[%clk 0:03:01.7]} 14. g4 {[%clk 0:03:01.3]}
14... Be7 {[%clk 0:02:59.8]} 15. g5 {[%clk 0:03:00.4]} 15... Nh5 {[%clk
0:02:59.3]} 16. g6 {[%clk 0:03:01.6]} 16... Nc5 {[%clk 0:02:53.8]} 17. gxf7+
{[%clk 0:02:46.8]} 17... Kxf7 {[%clk 0:02:55.7]} 18. Rg1 {[%clk 0:02:46.8]}
18... Bf6 {[%clk 0:02:52.2]} 19. Nf3 {[%clk 0:02:44.7]} 19... Rac8 {[%clk
0:02:36]} 20. Rg4 {[%clk 0:02:32.3]} 20... Qc6 {[%clk 0:02:14.8]} 21. Kg1 {[%clk
0:02:27.5]} 21... d5 {[%clk 0:02:14.2]} 22. exd5 {[%clk 0:01:39.1]} 22... exd5
{[%clk 0:02:16.1]} 23. Bg6+ {[%clk 0:01:40.4]} 23... Kf8 {[%clk 0:02:09.9]} 24.
Ne5 {[%clk 0:01:40.7]} 24... Qb6 {[%clk 0:01:33.3]} 25. Be3 {[%clk 0:01:33.8]}
25... Qe6 {[%clk 0:01:23.5]} 26. Bxc5+ {[%clk 0:01:26.3]} 26... Kg8 {[%clk
0:01:00.2]} 27. Bf7+ {[%clk 0:01:26.1]} 27... Qxf7 {[%clk 0:01:01.1]} 28. Nxf7
{[%clk 0:01:28]} 28... Kxf7 {[%clk 0:00:59.2]} 29. Qe6# {[%clk 0:01:27.6]} 1-0

[Event "*** Titled Tuesday Blitz"]
[Site "Chess.com"]
[Date "2018.10.02"]
[Round "6"]
[White "Sychev_Klementy"]
[Black "BasilSmash"]
[Result "1/2-1/2"]
[WhiteElo "2687"]
[BlackElo "2403"]
[TimeControl "180+2"]
[EndTime "14:18:43 PDT"]
[Termination "Game drawn by repetition"]

1. e4 {[%clk 0:03:01.9]} 1... c6 {[%clk 0:03:00.3]} 2. d4 {[%clk 0:03:02.3]}
2... d5 {[%clk 0:03:02.2]} 3. Nd2 {[%clk 0:03:03.8]} 3... dxe4 {[%clk
0:03:02.8]} 4. Nxe4 {[%clk 0:03:05.7]} 4... Bf5 {[%clk 0:03:03.9]} 5. Ng3 {[%clk
0:03:06.3]} 5... Bg6 {[%clk 0:03:04.9]} 6. Bc4 {[%clk 0:03:08]} 6... e6 {[%clk
0:03:01.8]} 7. h4 {[%clk 0:03:09.6]} 7... h6 {[%clk 0:03:01.9]} 8. N1e2 {[%clk
0:03:07.5]} 8... Nf6 {[%clk 0:03:02.6]} 9. Nf4 {[%clk 0:03:07.6]} 9... Bh7
{[%clk 0:03:03.7]} 10. O-O {[%clk 0:03:09.3]} 10... Bd6 {[%clk 0:03:04.6]} 11.
Re1 {[%clk 0:03:07]} 11... O-O {[%clk 0:03:01.9]} 12. c3 {[%clk 0:03:08.5]}
12... Re8 {[%clk 0:03:00.2]} 13. Qf3 {[%clk 0:02:55.1]} 13... Nbd7 {[%clk
0:02:58.1]} 14. Bd3 {[%clk 0:02:52.9]} 14... Bxd3 {[%clk 0:02:56.7]} 15. Nxd3
{[%clk 0:02:53.5]} 15... Qc7 {[%clk 0:02:56.4]} 16. Nh5 {[%clk 0:02:52.5]} 16...
Nxh5 {[%clk 0:02:56.2]} 17. Qxh5 {[%clk 0:02:54.4]} 17... e5 {[%clk 0:02:44.3]}
18. dxe5 {[%clk 0:02:38.5]} 18... Nxe5 {[%clk 0:02:46.2]} 19. Nxe5 {[%clk
0:02:27.1]} 19... Rxe5 {[%clk 0:02:41.4]} 20. Rxe5 {[%clk 0:02:28.2]} 20... Bxe5
{[%clk 0:02:43.3]} 21. Be3 {[%clk 0:02:29.6]} 21... Rd8 {[%clk 0:02:39.1]} 22.
Re1 {[%clk 0:02:29.9]} 22... Bf6 {[%clk 0:02:18.6]} 23. g3 {[%clk 0:02:20.9]}
23... a6 {[%clk 0:02:18.3]} 24. Qf3 {[%clk 0:02:20.7]} 24... Qd6 {[%clk
0:02:13.3]} 25. Kg2 {[%clk 0:02:10.3]} 25... Qd5 {[%clk 0:02:13.1]} 26. Bb6
{[%clk 0:02:10.5]} 26... Rd7 {[%clk 0:02:09.6]} 27. Qxd5 {[%clk 0:02:03.5]}
27... Rxd5 {[%clk 0:02:10]} 28. a4 {[%clk 0:02:04.5]} 28... h5 {[%clk
0:02:08.5]} 29. Re8+ {[%clk 0:02:04.7]} 29... Kh7 {[%clk 0:02:09.2]} 30. Rb8
{[%clk 0:02:05.9]} 30... Rd7 {[%clk 0:02:09.5]} 31. Kf3 {[%clk 0:02:04.7]} 31...
Kg6 {[%clk 0:02:10]} 32. Ke4 {[%clk 0:02:01.8]} 32... Re7+ {[%clk 0:02:05]} 33.
Kd3 {[%clk 0:02:00.9]} 33... Rd7+ {[%clk 0:02:05]} 34. Ke4 {[%clk 0:02:00.8]}
34... Re7+ {[%clk 0:02:05.4]} 35. Kf3 {[%clk 0:02:01.6]} 35... Kf5 {[%clk
0:02:05]} 36. Be3 {[%clk 0:02:01.9]} 36... Rd7 {[%clk 0:02:02]} 37. a5 {[%clk
0:01:55.3]} 37... g6 {[%clk 0:01:55.7]} 38. Ke2 {[%clk 0:01:47.8]} 38... Ke4
{[%clk 0:01:52.1]} 39. Re8+ {[%clk 0:01:47.7]} 39... Re7 {[%clk 0:01:45.6]} 40.
Rb8 {[%clk 0:01:47.7]} 40... Rd7 {[%clk 0:01:43.8]} 41. Re8+ {[%clk 0:01:47.5]}
41... Re7 {[%clk 0:01:40.3]} 42. Rb8 {[%clk 0:01:46.4]} 42... Rd7 {[%clk
0:01:40.5]} 1/2-1/2

[Event "*** Titled Tuesday Blitz"]
[Site "Chess.com"]
[Date "2018.10.02"]
[Round "6"]
[White "MITerryble"]
[Black "kasparik_garik"]
[Result "1-0"]
[WhiteElo "2768"]
[BlackElo "2557"]
[TimeControl "180+2"]
[EndTime "14:19:38 PDT"]
[Termination "MITerryble won by resignation"]

1. d4 {[%clk 0:02:43.3]} 1... Nf6 {[%clk 0:03:00.3]} 2. Nf3 {[%clk 0:02:44.7]}
2... g6 {[%clk 0:03:00.5]} 3. Bg5 {[%clk 0:02:45.4]} 3... Bg7 {[%clk 0:03:01.3]}
4. Nbd2 {[%clk 0:02:46.8]} 4... O-O {[%clk 0:03:02.2]} 5. c3 {[%clk 0:02:48.3]}
5... d6 {[%clk 0:03:03]} 6. e4 {[%clk 0:02:49.9]} 6... c5 {[%clk 0:03:03.6]} 7.
dxc5 {[%clk 0:02:51.3]} 7... dxc5 {[%clk 0:03:04.6]} 8. Bc4 {[%clk 0:02:52.9]}
8... Nc6 {[%clk 0:03:05.3]} 9. Qe2 {[%clk 0:02:53]} 9... Qc7 {[%clk 0:02:59.6]}
10. O-O {[%clk 0:02:45.5]} 10... Ng4 {[%clk 0:03:00.2]} 11. h3 {[%clk
0:02:35.2]} 11... Nge5 {[%clk 0:02:59.6]} 12. Bb3 {[%clk 0:02:31.8]} 12... Nxf3+
{[%clk 0:02:42.7]} 13. Nxf3 {[%clk 0:02:33.7]} 13... a5 {[%clk 0:02:32]} 14. a4
{[%clk 0:02:33.1]} 14... b6 {[%clk 0:02:32.9]} 15. Bc4 {[%clk 0:02:34.4]} 15...
Bb7 {[%clk 0:02:27.6]} 16. Rad1 {[%clk 0:02:35.4]} 16... h6 {[%clk 0:02:14]} 17.
Bh4 {[%clk 0:02:35.3]} 17... Ne5 {[%clk 0:02:15]} 18. Bg3 {[%clk 0:02:34.4]}
18... g5 {[%clk 0:02:06.6]} 19. h4 {[%clk 0:02:29.4]} 19... e6 {[%clk
0:01:23.4]} 20. hxg5 {[%clk 0:02:28.3]} 20... hxg5 {[%clk 0:00:57.9]} 21. Nxg5
{[%clk 0:02:30.2]} 21... Rfd8 {[%clk 0:00:58.7]} 22. Bxe6 {[%clk 0:02:20.2]}
22... Rxd1 {[%clk 0:00:48.8]} 23. Bxf7+ {[%clk 0:02:20.6]} 23... Qxf7 {[%clk
0:00:47.1]} 24. Nxf7 {[%clk 0:02:19.7]} 24... Rxf1+ {[%clk 0:00:47.9]} 25. Qxf1
{[%clk 0:02:21.3]} 25... Nxf7 {[%clk 0:00:48]} 26. Qb5 {[%clk 0:02:21.6]} 26...
Bxe4 {[%clk 0:00:25]} 27. Qxb6 {[%clk 0:02:22.8]} 27... c4 {[%clk 0:00:26]} 28.
Bb8 {[%clk 0:02:23.9]} 28... Bf8 {[%clk 0:00:10.5]} 29. f3 {[%clk 0:02:16.5]}
29... Bd5 {[%clk 0:00:11.2]} 30. Qb5 {[%clk 0:02:16.8]} 30... Be7 {[%clk
0:00:10.8]} 31. Bc7 {[%clk 0:02:14.3]} 31... Be6 {[%clk 0:00:10.5]} 32. Qc6
{[%clk 0:02:14.9]} 32... Rc8 {[%clk 0:00:10.8]} 33. Qxe6 {[%clk 0:02:12.5]}
33... Rxc7 {[%clk 0:00:11.8]} 34. f4 {[%clk 0:02:07.7]} 34... Bc5+ {[%clk
0:00:11.8]} 35. Kh2 {[%clk 0:02:08.7]} 35... Bd6 {[%clk 0:00:12.6]} 36. g3
{[%clk 0:02:09.1]} 36... Re7 {[%clk 0:00:13.6]} 37. Qxc4 {[%clk 0:02:07.5]}
37... Re2+ {[%clk 0:00:14.1]} 38. Qxe2 {[%clk 0:02:08]} 1-0

[Event "*** Titled Tuesday Blitz"]
[Site "Chess.com"]
[Date "2018.10.02"]
[Round "6"]
[White "Eliwood44"]
[Black "m3alam"]
[Result "0-1"]
[WhiteElo "2178"]
[BlackElo "2143"]
[TimeControl "180+2"]
[EndTime "14:19:45 PDT"]
[Termination "m3alam won by resignation"]

1. d4 {[%clk 0:03:01.9]} 1... Nf6 {[%clk 0:02:58.8]} 2. Nf3 {[%clk 0:02:51.6]}
2... g6 {[%clk 0:02:58.7]} 3. Nc3 {[%clk 0:02:52.2]} 3... Bg7 {[%clk 0:03:00.1]}
4. e4 {[%clk 0:02:53]} 4... O-O {[%clk 0:02:59.8]} 5. h3 {[%clk 0:02:53.2]} 5...
c5 {[%clk 0:02:59.3]} 6. d5 {[%clk 0:02:54]} 6... e6 {[%clk 0:02:59.1]} 7. a4
{[%clk 0:02:54.3]} 7... Qa5 {[%clk 0:02:49.4]} 8. Bd2 {[%clk 0:02:52.7]} 8...
Qb4 {[%clk 0:02:46.2]} 9. Nb5 {[%clk 0:02:41.5]} 9... Qxe4+ {[%clk 0:02:45.3]}
10. Be2 {[%clk 0:02:41.4]} 10... Nxd5 {[%clk 0:02:43.7]} 11. O-O {[%clk
0:02:40.7]} 11... Nf4 {[%clk 0:02:17.1]} 12. Bd3 {[%clk 0:02:33.4]} 12... Nxd3
{[%clk 0:02:17.2]} 13. cxd3 {[%clk 0:02:35.3]} 13... Qc6 {[%clk 0:02:17.3]} 14.
Rc1 {[%clk 0:02:34.2]} 14... a6 {[%clk 0:02:16.7]} 15. Nc3 {[%clk 0:02:25.9]}
15... d5 {[%clk 0:02:15]} 16. b4 {[%clk 0:02:23]} 16... cxb4 {[%clk 0:02:08.8]}
17. Nb5 {[%clk 0:02:20]} 17... Qb6 {[%clk 0:02:04.5]} 18. Be3 {[%clk 0:02:13.7]}
18... d4 {[%clk 0:02:01.6]} 19. Nbxd4 {[%clk 0:02:10.6]} 19... Qd8 {[%clk
0:01:50.7]} 20. Qb3 {[%clk 0:02:00]} 20... e5 {[%clk 0:01:46]} 21. Nc2 {[%clk
0:01:55.9]} 21... a5 {[%clk 0:01:45.6]} 22. d4 {[%clk 0:01:56.3]} 22... Be6
{[%clk 0:01:45.1]} 23. Qb1 {[%clk 0:01:55]} 23... Nc6 {[%clk 0:01:44.9]} 24.
dxe5 {[%clk 0:01:27]} 24... Nxe5 {[%clk 0:01:44.6]} 25. Nxe5 {[%clk 0:01:21.4]}
25... Bxe5 {[%clk 0:01:46]} 26. Rfd1 {[%clk 0:01:21.2]} 26... Qh4 {[%clk
0:01:45.2]} 27. Ne1 {[%clk 0:01:13.2]} 27... Qf6 {[%clk 0:01:15.5]} 28. Nf3
{[%clk 0:01:12]} 28... Bc3 {[%clk 0:01:14.4]} 29. Bg5 {[%clk 0:01:12.5]} 29...
Qg7 {[%clk 0:01:12.3]} 30. Rd6 {[%clk 0:01:11.8]} 30... h6 {[%clk 0:01:09.3]}
31. Be3 {[%clk 0:01:11.3]} 31... Rfd8 {[%clk 0:01:08.7]} 32. Rb6 {[%clk
0:01:10.5]} 32... Rd7 {[%clk 0:01:07]} 33. Rd1 {[%clk 0:01:09.2]} 33... Rad8
{[%clk 0:01:05.1]} 34. Rxd7 {[%clk 0:01:08.3]} 34... Rxd7 {[%clk 0:01:06]} 35.
Qc1 {[%clk 0:01:10.2]} 35... Kh7 {[%clk 0:01:05.7]} 36. h4 {[%clk 0:01:07.1]}
36... Bb3 {[%clk 0:01:06.3]} 0-1

[Event "*** Titled Tuesday Blitz"]
[Site "Chess.com"]
[Date "2018.10.02"]
[Round "6"]
[White "Godzillator"]
[Black "chesstatour"]
[Result "1-0"]
[WhiteElo "2265"]
[BlackElo "2011"]
[TimeControl "180+2"]
[EndTime "14:19:51 PDT"]
[Termination "Godzillator won on time"]

1. d4 {[%clk 0:03:01.9]} 1... e6 {[%clk 0:02:58.2]} 2. c4 {[%clk 0:03:02.8]}
2... Nf6 {[%clk 0:02:50.3]} 3. Nc3 {[%clk 0:03:03.2]} 3... Bb4 {[%clk
0:02:50.7]} 4. Qc2 {[%clk 0:03:03.8]} 4... b6 {[%clk 0:02:51.7]} 5. a3 {[%clk
0:03:02.1]} 5... Bxc3+ {[%clk 0:02:52.1]} 6. Qxc3 {[%clk 0:03:03.4]} 6... O-O
{[%clk 0:02:51.9]} 7. Bg5 {[%clk 0:03:03.8]} 7... h6 {[%clk 0:02:52.2]} 8. Bh4
{[%clk 0:03:04.4]} 8... d5 {[%clk 0:02:34.6]} 9. cxd5 {[%clk 0:03:02.6]} 9...
exd5 {[%clk 0:02:26.5]} 10. e3 {[%clk 0:03:01.4]} 10... c6 {[%clk 0:01:45.4]}
11. Nf3 {[%clk 0:03:01.1]} 11... Bg4 {[%clk 0:01:41.8]} 12. Bd3 {[%clk
0:03:01.8]} 12... Qd6 {[%clk 0:01:09.4]} 13. Ne5 {[%clk 0:02:58.4]} 13... Bh5
{[%clk 0:00:46.6]} 14. O-O {[%clk 0:02:53.9]} 14... Ne4 {[%clk 0:00:36.1]} 15.
Qc2 {[%clk 0:02:54.1]} 15... f6 {[%clk 0:00:26.2]} 16. Bxe4 {[%clk 0:02:53.2]}
16... fxe5 {[%clk 0:00:15.8]} 17. Bh7+ {[%clk 0:02:53.3]} 17... Kh8 {[%clk
0:00:16.5]} 18. Bg3 {[%clk 0:02:53.7]} 18... Nd7 {[%clk 0:00:14.1]} 19. Bf5
{[%clk 0:02:53.8]} 19... Rae8 {[%clk 0:00:11.1]} 20. Bxd7 {[%clk 0:02:54.3]}
20... Qxd7 {[%clk 0:00:11.7]} 21. Bxe5 {[%clk 0:02:55.3]} 21... Qf5 {[%clk
0:00:11.1]} 22. Qd2 {[%clk 0:02:54.2]} 22... Qg5 {[%clk 0:00:09.2]} 23. f4
{[%clk 0:02:53.2]} 23... Qe7 {[%clk 0:00:07.3]} 24. Qf2 {[%clk 0:02:47.6]} 24...
Bg6 {[%clk 0:00:07.9]} 25. Qg3 {[%clk 0:02:46.7]} 25... Kh7 {[%clk 0:00:08.3]}
26. Rf2 {[%clk 0:02:44.6]} 26... Be4 {[%clk 0:00:09.2]} 27. Raf1 {[%clk
0:02:44.9]} 27... Rf7 {[%clk 0:00:07.7]} 28. f5 {[%clk 0:02:45.1]} 28... Qg5
{[%clk 0:00:05.6]} 29. Qh3 {[%clk 0:02:38.4]} 29... Ref8 {[%clk 0:00:04.5]} 30.
f6 {[%clk 0:02:36.2]} 30... gxf6 {[%clk 0:00:03.2]} 31. Bf4 {[%clk 0:02:35.2]}
31... Qg6 {[%clk 0:00:02.9]} 32. Qe6 {[%clk 0:02:29.1]} 32... f5 {[%clk
0:00:02.9]} 33. Qxg6+ {[%clk 0:02:26]} 33... Kxg6 {[%clk 0:00:04]} 34. Rc1
{[%clk 0:02:21.9]} 34... Rc8 {[%clk 0:00:03.3]} 35. b4 {[%clk 0:02:21.9]} 35...
h5 {[%clk 0:00:03.4]} 36. Rb2 {[%clk 0:02:20.6]} 36... Re7 {[%clk 0:00:03.2]}
37. Kf2 {[%clk 0:02:16.9]} 37... Rf7 {[%clk 0:00:03.2]} 38. b5 {[%clk
0:02:14.4]} 38... c5 {[%clk 0:00:03.4]} 39. dxc5 {[%clk 0:02:10.5]} 39... bxc5
{[%clk 0:00:05.3]} 40. a4 {[%clk 0:02:11.4]} 40... Rf6 {[%clk 0:00:04.9]} 41. a5
{[%clk 0:02:11.9]} 41... h4 {[%clk 0:00:03]} 42. b6 {[%clk 0:02:07.4]} 1-0

[Event "*** Titled Tuesday Blitz"]
[Site "Chess.com"]
[Date "2018.10.02"]
[Round "6"]
[White "Saitama_Hero"]
[Black "NeverEverForever1990"]
[Result "0-1"]
[WhiteElo "2237"]
[BlackElo "2453"]
[TimeControl "180+2"]
[EndTime "14:20:27 PDT"]
[Termination "NeverEverForever1990 won on time"]

1. d4 {[%clk 0:03:01.9]} 1... Nf6 {[%clk 0:03:00]} 2. c4 {[%clk 0:03:01.8]} 2...
e6 {[%clk 0:03:00.7]} 3. Nc3 {[%clk 0:03:01]} 3... Bb4 {[%clk 0:03:01.3]} 4. f3
{[%clk 0:03:01.2]} 4... O-O {[%clk 0:02:59.6]} 5. a3 {[%clk 0:03:02.4]} 5...
Bxc3+ {[%clk 0:03:00.5]} 6. bxc3 {[%clk 0:03:04.3]} 6... Ne8 {[%clk 0:03:01.1]}
7. e4 {[%clk 0:03:05.5]} 7... b6 {[%clk 0:02:59.1]} 8. Bd3 {[%clk 0:03:05.1]}
8... Ba6 {[%clk 0:02:59.2]} 9. e5 {[%clk 0:02:59.3]} 9... f5 {[%clk 0:02:59.1]}
10. f4 {[%clk 0:02:53.2]} 10... Nc6 {[%clk 0:02:55.7]} 11. Rb1 {[%clk
0:02:35.8]} 11... Na5 {[%clk 0:02:45.1]} 12. Qe2 {[%clk 0:02:37.1]} 12... c5
{[%clk 0:02:44.6]} 13. d5 {[%clk 0:02:30.9]} 13... d6 {[%clk 0:02:32.4]} 14. Nf3
{[%clk 0:02:27.1]} 14... dxe5 {[%clk 0:02:28.1]} 15. fxe5 {[%clk 0:02:29]} 15...
exd5 {[%clk 0:02:19.3]} 16. cxd5 {[%clk 0:02:30.9]} 16... c4 {[%clk 0:02:17.9]}
17. Bc2 {[%clk 0:02:30.7]} 17... Qxd5 {[%clk 0:02:18.7]} 18. O-O {[%clk
0:02:29.9]} 18... Nc7 {[%clk 0:02:15.7]} 19. Rd1 {[%clk 0:02:23]} 19... Qc5+
{[%clk 0:02:11.2]} 20. Be3 {[%clk 0:02:22.2]} 20... Qxa3 {[%clk 0:02:10.8]} 21.
Rd7 {[%clk 0:02:21.8]} 21... Ne6 {[%clk 0:02:09.5]} 22. Nd4 {[%clk 0:02:13.8]}
22... Nxd4 {[%clk 0:01:53.3]} 23. Bxd4 {[%clk 0:02:15.7]} 23... Rad8 {[%clk
0:01:48.4]} 24. Rxa7 {[%clk 0:02:12.9]} 24... Nc6 {[%clk 0:01:46.8]} 25. Rc7
{[%clk 0:00:37.6]} 25... Nxd4 {[%clk 0:01:41.2]} 26. cxd4 {[%clk 0:00:39.5]}
26... Rxd4 {[%clk 0:01:33.1]} 27. e6 {[%clk 0:00:41]} 27... Qd6 {[%clk
0:01:28.7]} 28. Rd7 {[%clk 0:00:26.3]} 28... Qc5 {[%clk 0:01:25.3]} 29. Kh1
{[%clk 0:00:22.3]} 29... Re8 {[%clk 0:01:13.6]} 30. Rd1 {[%clk 0:00:14.3]} 30...
Rxd1+ {[%clk 0:01:11.5]} 31. Qxd1 {[%clk 0:00:11.8]} 31... Rxe6 {[%clk
0:00:55.5]} 32. Rd8+ {[%clk 0:00:10.5]} 32... Kf7 {[%clk 0:00:56.7]} 33. Qh5+
{[%clk 0:00:04.5]} 33... Rg6 {[%clk 0:00:57]} 0-1

[Event "*** Titled Tuesday Blitz"]
[Site "Chess.com"]
[Date "2018.10.02"]
[Round "6"]
[White "alishersuleymenov"]
[Black "Bauxi435"]
[Result "0-1"]
[WhiteElo "2477"]
[BlackElo "2437"]
[TimeControl "180+2"]
[EndTime "14:20:44 PDT"]
[Termination "Bauxi435 won by resignation"]

1. d4 {[%clk 0:03:01.9]} 1... Nf6 {[%clk 0:03:00.5]} 2. c4 {[%clk 0:03:02.9]}
2... e6 {[%clk 0:03:01.5]} 3. g3 {[%clk 0:03:04]} 3... d5 {[%clk 0:03:02.3]} 4.
Nf3 {[%clk 0:03:04.6]} 4... dxc4 {[%clk 0:03:03.3]} 5. Bg2 {[%clk 0:03:03.4]}
5... Bd7 {[%clk 0:03:02.1]} 6. Ne5 {[%clk 0:03:03.6]} 6... Bc6 {[%clk
0:03:03.4]} 7. Nxc6 {[%clk 0:03:04.8]} 7... Nxc6 {[%clk 0:03:05.2]} 8. O-O
{[%clk 0:03:06]} 8... Qd7 {[%clk 0:03:06.7]} 9. e3 {[%clk 0:03:05.6]} 9... Rd8
{[%clk 0:03:06.3]} 10. Nc3 {[%clk 0:02:41.3]} 10... e5 {[%clk 0:03:00.2]} 11. d5
{[%clk 0:02:40.3]} 11... Nb4 {[%clk 0:02:57.6]} 12. e4 {[%clk 0:02:34.5]} 12...
a6 {[%clk 0:02:46.9]} 13. Kh1 {[%clk 0:01:30.3]} 13... Bc5 {[%clk 0:02:29.7]}
14. Bg5 {[%clk 0:01:28.7]} 14... Nd3 {[%clk 0:02:27.8]} 15. Qc2 {[%clk
0:01:13.4]} 15... Ng4 {[%clk 0:02:15.4]} 16. Nd1 {[%clk 0:01:02.5]} 16... f6
{[%clk 0:02:02.8]} 17. f3 {[%clk 0:00:43.3]} 17... Ngf2+ {[%clk 0:01:46.5]} 18.
Nxf2 {[%clk 0:00:43.3]} 18... Nxf2+ {[%clk 0:01:47]} 19. Rxf2 {[%clk 0:00:44.9]}
19... Bxf2 {[%clk 0:01:48.4]} 20. Bxf6 {[%clk 0:00:40]} 20... gxf6 {[%clk
0:01:47.5]} 21. Qxf2 {[%clk 0:00:41.5]} 21... Qb5 {[%clk 0:01:43.4]} 22. Bh3
{[%clk 0:00:37.8]} 22... Ke7 {[%clk 0:01:37.3]} 23. f4 {[%clk 0:00:28.7]} 23...
Rdf8 {[%clk 0:01:34.3]} 24. Be6 {[%clk 0:00:28.8]} 24... h5 {[%clk 0:01:27.5]}
25. Qd2 {[%clk 0:00:26.1]} 25... h4 {[%clk 0:01:24.9]} 26. g4 {[%clk 0:00:22.3]}
26... exf4 {[%clk 0:01:25.4]} 27. Qxf4 {[%clk 0:00:24.2]} 27... Qb6 {[%clk
0:01:21]} 28. g5 {[%clk 0:00:22.7]} 28... Qd6 {[%clk 0:01:02]} 29. gxf6+ {[%clk
0:00:19.3]} 29... Rxf6 {[%clk 0:01:03.9]} 30. Qg5 {[%clk 0:00:20.6]} 30... Qf4
{[%clk 0:00:57.4]} 31. Qg7+ {[%clk 0:00:20.8]} 31... Kd6 {[%clk 0:00:58.7]} 32.
e5+ {[%clk 0:00:06]} 32... Qxe5 {[%clk 0:00:55.2]} 33. Qg2 {[%clk 0:00:04.3]}
33... Rhf8 {[%clk 0:00:51.7]} 34. Rg1 {[%clk 0:00:03.9]} 34... Rf2 {[%clk
0:00:46.2]} 0-1